fUST/lending_fUST_20240319
["ID","MTS","AMOUNT","RATE_DAILY","PERIOD"]
[319543225,1710839852428,-2085.57030109,0.00017735,2]
[319543226,1710839852551,-42.56265921,0.00017735,2]
[319543227,1710839860650,-2085.57030109,0.00017735,2]
[319543228,1710839860760,-42.56265921,0.00017735,2]
[319543229,1710839868852,-2690.30929911,0.00017734,2]
[319543230,1710839868959,-54.90427141,0.00017734,2]
[319543584,1710839935803,-559.15919287,0.00017733,2]
[319543586,1710839935830,-140.65608044,0.00017734,2]
[319543590,1710839935904,-14.28194435,0.00017734,2]
[319543595,1710839936013,187.5384845,0.00017733,2]
[319543908,1710839993753,-324.24232368,0.00017733,2]
[319543909,1710839993781,-146.01654827,0.00017734,2]
[319543910,1710839993885,-9.59711984,0.00017734,2]
[319543911,1710840007641,-959.41543894,0.00017733,2]
[319543912,1710840007755,-19.57990692,0.00017733,2]
[319543913,1710840042388,-2690.30929911,0.000179,2]
[319543914,1710840042478,-54.90427141,0.000179,2]
[319543917,1710840070206,-1273.83994747,0.000179,2]
[319543918,1710840070364,-25.99673362,0.000179,2]
[319543919,1710840203347,-154.93802479,0.000179,2]
[319543920,1710840203375,-1270.74118697,0.000179,2]
[319543921,1710840203502,-29.09549412,0.000179,2]
[319543922,1710840207347,-2690.30929911,0.000179,2]
[319543923,1710840207584,-54.90427141,0.000179,2]
[319544062,1710840333845,-2690.30929911,0.000179,2]
[319544063,1710840333949,-54.90427141,0.000179,2]
[319544115,1710840449175,-1043.15208792,0.00017901,2]
[319544116,1710840449196,-227.048369,0.0001811,2]
[319544117,1710840449216,-382.29481139,0.00019108,2]
[319544118,1710840449236,-1539.59328159,0.00019108,2]
[319544119,1710840449256,-155.19587984,0.00019108,2]
[319544120,1710840449276,-1026.01755374,0.00019108,2]
[319544121,1710840449298,-2395.56864831,0.00019108,2]
[319544122,1710840449318,-562.07868334,0.00019109,2]
[319544123,1710840449347,-186.88119447,0.00019109,2]
[319544124,1710840449370,-47721.87171688,0.0001911,2]
[319544125,1710840449391,-8728.05159003,0.00019111,2]
[319544126,1710840449412,-175.234543,0.00019178,2]
[319544127,1710840449434,-213.608794,0.00019213,2]
[319544128,1710840449455,-191.05157735,0.00019496,2]
[319544129,1710840449476,-236.48109331,0.000195,2]
[319544130,1710840449496,-213.46505018,0.000197,2]
[319544131,1710840449516,-213.46505018,0.000197,2]
[319544132,1710840449536,-7955.18439987,0.0001989,2]
[319544133,1710840449556,-175.234543,0.00019926,2]
[319544134,1710840449575,-1015.2,0.0001998,10]
[319544135,1710840449598,-1880.63328019,0.00019999,2]
[319544136,1710840449618,-5193.61780529,0.0002,5]
[319544137,1710840449642,-200.0,0.0002,2]
[319544138,1710840449662,-545.98257597,0.0002,2]
[319544139,1710840449683,-151.52847512,0.0002,2]
[319544140,1710840449702,-336.88608686,0.00020515,2]
[319544141,1710840449721,-175.234543,0.00020674,2]
[319544142,1710840449742,-2000.0,0.00020721,2]
[319544143,1710840449764,-874.05026485,0.00020721,2]
[319544144,1710840449784,-225.556,0.00020732,2]
[319544145,1710840449805,-225.557,0.00020732,2]
[319544146,1710840449824,-21.00216206,0.00020732,2]
[319544174,1710840548296,-469.55924245,0.00017899,2]
[319544175,1710840548324,-142.65463977,0.000179,2]
[319544176,1710840548591,-12.49416086,0.000179,2]
[319544241,1710840633463,-150.0,0.000189,2]
[319544246,1710840633491,-227.048369,0.00019806,2]
[319544248,1710840633502,-1044.96644253,0.00020402,2]
[319544250,1710840633512,-2000.0,0.00020724,2]
[319544252,1710840633522,-204.55483794,0.00020732,2]
[319544254,1710840633532,-225.557,0.00020732,2]
[319544256,1710840633542,-225.557,0.00020732,2]
[319544258,1710840633552,-159.116211,0.00020764,2]
[319544260,1710840633564,-243.489504,0.00020764,2]
[319544262,1710840633574,-2000.0,0.00020767,2]
[319544264,1710840633584,-2000.0,0.00020809,2]
[319544265,1710840633594,-470.37081444,0.00020818,2]
[319544267,1710840633603,-315.84445677,0.00020819,2]
[319544269,1710840633613,-5014.43462158,0.00020819,2]
[319544270,1710840633622,-11838.84731181,0.0002082,2]
[319544271,1710840633634,-20177.29154817,0.0002082,2]
[319544272,1710840633644,-456.66913785,0.00020821,2]
[319544273,1710840633653,-500.0,0.00020821,2]
[319544274,1710840633662,-500.0,0.00020821,2]
[319544276,1710840633671,-500.0,0.00020821,2]
[319544278,1710840633681,-500.0,0.00020821,2]
[319544279,1710840633695,-500.0,0.00020821,2]
[319544281,1710840633705,-500.0,0.00020821,2]
[319544283,1710840633714,-500.0,0.00020821,2]
[319544285,1710840633724,-500.25707378,0.00020821,2]
[319544286,1710840633737,-500.0,0.00020821,2]
[319544288,1710840633747,-500.0,0.00020821,2]
[319544289,1710840633756,-350.60364069,0.00020821,2]
[319544290,1710840633766,-500.0,0.00020821,2]
[319544291,1710840633776,-500.0,0.00020821,2]
[319544292,1710840633787,-500.0,0.00020821,2]
[319544293,1710840633797,-500.0,0.00020821,2]
[319544294,1710840633807,-501.91997487,0.00020821,2]
[319544295,1710840633817,-500.0,0.00020821,2]
[319544296,1710840633826,-500.0,0.00020821,2]
[319544297,1710840633836,-500.0,0.00020821,2]
[319544298,1710840633845,-500.0,0.00020821,2]
[319544299,1710840633855,-500.0,0.00020821,2]
[319544300,1710840633864,-593.30394245,0.00020821,2]
[319544301,1710840633874,-365.03551066,0.00020821,2]
[319544302,1710840633884,-500.0,0.00020821,2]
[319544303,1710840633894,-379.55728125,0.00020821,2]
[319544304,1710840633905,-500.89138023,0.00020821,2]
[319544305,1710840633914,-595.30383915,0.00020821,2]
[319544306,1710840633923,-369.93798239,0.00020821,2]
[319544307,1710840633933,-208.15023816,0.00020821,2]
[319544308,1710840633943,-500.0,0.00020821,2]
[319544309,1710840633952,-500.0,0.00020821,2]
[319544310,1710840633962,-500.0,0.00020821,2]
[319544311,1710840633972,-500.0,0.00020821,2]
[319544312,1710840633984,-500.0,0.00020821,2]
[319544313,1710840633994,-500.0,0.00020821,2]
[319544314,1710840634005,-500.0,0.00020821,2]
[319544315,1710840634014,-500.0,0.00020821,2]
[319544316,1710840634024,-151.0,0.00020821,2]
[319544317,1710840634033,-151.0,0.00020821,2]
[319544318,1710840634042,-500.0,0.00020821,2]
[319544319,1710840634051,-500.0,0.00020821,2]
[319544320,1710840634061,-530.19820949,0.00020821,2]
[319544321,1710840634070,-500.0,0.00020821,2]
[319544322,1710840634079,-500.0,0.00020821,2]
[319544323,1710840634088,-500.0,0.00020821,2]
[319544324,1710840634097,-500.0,0.00020821,2]
[319544325,1710840634106,-500.0,0.00020821,2]
[319544326,1710840634115,-500.0,0.00020821,2]
[319544327,1710840634124,-500.0,0.00020821,2]
[319544328,1710840634133,-500.0,0.00020821,2]
[319544329,1710840634143,-500.0,0.00020821,2]
[319544330,1710840634152,-500.0,0.00020821,2]
[319544331,1710840634161,-500.0,0.00020821,2]
[319544332,1710840634171,-2496.62,0.00020821,2]
[319544333,1710840634180,-2496.62,0.00020821,2]
[319544334,1710840634190,-2496.62,0.00020821,2]
[319544335,1710840634199,-500.0,0.00020821,2]
[319544336,1710840634208,-501.54553248,0.00020821,2]
[319544337,1710840634217,-500.0,0.00020821,2]
[319544338,1710840634229,-500.0,0.00020821,2]
[319544339,1710840634238,-500.0,0.00020821,2]
[319544340,1710840634247,-500.0,0.00020821,2]
[319544341,1710840634255,-417.76026271,0.00020821,2]
[319544342,1710840634265,-500.0,0.00020821,2]
[319544343,1710840634274,-500.0,0.00020821,2]
[319544344,1710840634283,-500.0,0.00020821,2]
[319544345,1710840634292,-500.0,0.00020821,2]
[319544346,1710840634302,-500.0,0.00020821,2]
[319544347,1710840634311,-500.0,0.00020821,2]
[319544348,1710840634320,-500.0,0.00020821,2]
[319544349,1710840634331,-429.00946597,0.00020821,2]
[319544350,1710840634341,-500.0,0.00020821,2]
[319544351,1710840634350,-598.20793385,0.00020821,2]
[319544352,1710840634359,-500.0,0.00020821,2]
[319544353,1710840634369,-500.0,0.00020821,2]
[319544354,1710840634378,-502.36545491,0.00020821,2]
[319544355,1710840634387,-500.0,0.00020821,2]
[319544356,1710840634396,-500.0,0.00020821,2]
[319544357,1710840634405,-500.0,0.00020821,2]
[319544358,1710840634414,-500.0,0.00020821,2]
[319544359,1710840634423,-500.0,0.00020821,2]
[319544360,1710840634433,-500.00821333,0.00020821,2]
[319544361,1710840634442,-500.0,0.00020821,2]
[319544362,1710840634451,-500.0,0.00020821,2]
[319544363,1710840634460,-500.0,0.00020821,2]
[319544364,1710840634470,-500.0,0.00020821,2]
[319544365,1710840634580,-95.97831263,0.00020821,2]
[319544457,1710840639240,-319.11731115,0.00020821,2]
[319544458,1710840639252,-84.90437622,0.00020821,2]
[319544459,1710840639262,-500.0,0.00020821,2]
[319544460,1710840639271,-354.28402378,0.00020821,2]
[319544461,1710840639282,-184.58632975,0.00020821,2]
[319544462,1710840639292,-500.0,0.00020821,2]
[319544463,1710840639302,-500.0,0.00020821,2]
[319544464,1710840639311,-500.0,0.00020821,2]
[319544465,1710840639320,-500.0,0.00020821,2]
[319544466,1710840639330,-500.92821214,0.00020821,2]
[319544467,1710840639340,-595.27610959,0.00020834,2]
[319544468,1710840639349,-500.0,0.00020834,2]
[319544469,1710840639359,-500.0,0.00020834,2]
[319544470,1710840639368,-500.0,0.00020834,2]
[319544471,1710840639377,-500.0,0.00020834,2]
[319544472,1710840639386,-166.75055813,0.00020834,2]
[319544473,1710840639396,-500.0,0.00020834,2]
[319544474,1710840639406,-2000.0,0.00020851,2]
[319544475,1710840639415,-2000.0,0.00020893,2]
[319544476,1710840639424,-2000.0,0.00020935,2]
[319544477,1710840639434,-2000.0,0.00020978,2]
[319544478,1710840639444,-545.0,0.00021,2]
[319544479,1710840639454,-874.05026484,0.00021016,2]
[319544480,1710840639463,-2000.0,0.0002102,2]
[319544481,1710840639472,-159.116211,0.00021024,2]
[319544482,1710840639485,-243.489504,0.00021024,2]
[319544483,1710840639494,-72.60702909,0.00021062,2]
[319544484,1710840639506,-3080.50848391,0.00021062,2]
[319544485,1710840639516,-500.0,0.00021162,2]
[319544486,1710840639526,-510.19225,0.00021163,2]
[319544487,1710840639536,-500.0,0.00021163,2]
[319544488,1710840639548,-500.0,0.00021163,2]
[319544489,1710840639558,-500.0,0.00021163,2]
[319544490,1710840639567,-552.476,0.00021164,2]
[319544491,1710840639577,-552.477,0.00021164,2]
[319544492,1710840639587,-552.476,0.00021164,2]
[319544493,1710840639597,-223.68732363,0.00021164,2]
[319544579,1710840640894,-328.78967637,0.00021164,2]
[319544581,1710840640905,-506.00004906,0.00021164,2]
[319544586,1710840640937,-46.47695094,0.00021164,2]
[319544588,1710840640948,-159.116211,0.00021283,2]
[319544590,1710840640958,-243.489504,0.00021283,2]
[319544592,1710840640976,-874.05026484,0.00021311,2]
[319544594,1710840640990,-500.0,0.00021394,2]
[319544597,1710840641001,-151.0,0.00021394,2]
[319544598,1710840641013,-500.0,0.00021394,2]
[319544600,1710840641023,-500.0,0.00021394,2]
[319544602,1710840641034,-1000.0,0.00021396,2]
[319544604,1710840641044,-154.92253873,0.0002141,2]
[319544606,1710840641054,-175.234543,0.00021422,2]
[319544608,1710840641063,-181.25815924,0.00021494,2]
[319544610,1710840641074,-668.60465392,0.00021494,2]
[319544613,1710840641084,-1518.53587366,0.00021494,2]
[319544614,1710840641094,-341.39611652,0.00021494,2]
[319544616,1710840641104,-596.57191089,0.00021494,2]
[319544618,1710840641114,-204.98847702,0.00021494,2]
[319544619,1710840641124,-239.46420851,0.00021494,2]
[319544620,1710840641133,-168.71255208,0.00021494,2]
[319544622,1710840641143,-400.0,0.00021494,2]
[319544624,1710840641153,-155.08297433,0.00021494,2]
[319544626,1710840641162,-2159.66950967,0.00021495,2]
[319544628,1710840641173,-275.2846125,0.00021495,2]
[319544630,1710840641182,-155.00941517,0.00021495,2]
[319544633,1710840641201,-328.36856559,0.00021496,2]
[319544635,1710840641212,-500.0,0.00021496,2]
[319544637,1710840641223,-500.0,0.00021496,2]
[319544639,1710840641236,-40.16295839,0.00021496,2]
[319544642,1710840641250,-459.83704161,0.00021496,2]
[319544644,1710840641260,-501.34915919,0.00021496,2]
[319544646,1710840641270,-500.0,0.00021496,2]
[319544648,1710840641280,-500.0,0.00021496,2]
[319544649,1710840641290,-2496.62,0.00021496,2]
[319544650,1710840641300,-2496.62,0.00021496,2]
[319544651,1710840641310,-500.0,0.00021496,2]
[319544652,1710840641320,-500.0,0.00021496,2]
[319544653,1710840641330,-500.0,0.00021496,2]
[319544654,1710840641340,-500.0,0.00021496,2]
[319544655,1710840641350,-500.0,0.00021496,2]
[319544656,1710840641360,-500.0,0.00021496,2]
[319544657,1710840641370,-500.0,0.00021496,2]
[319544658,1710840641380,-500.0,0.00021496,2]
[319544659,1710840641390,-500.0,0.00021496,2]
[319544660,1710840641400,-500.0,0.00021496,2]
[319544661,1710840641410,-500.0,0.00021496,2]
[319544662,1710840641420,-30662.57958556,0.00021496,2]
[319544663,1710840641434,-2182.86,0.00021496,2]
[319544876,1710840647004,-500.0,0.00020821,2]
[319544880,1710840647014,-500.0,0.00020821,2]
[319544884,1710840647023,-605.44510999,0.00021394,2]
[319544888,1710840647032,-41019.15104147,0.00021496,2]
[319544892,1710840647042,-159.116211,0.00021543,2]
[319544896,1710840647051,-243.489504,0.00021543,2]
[319544900,1710840647060,-981.98406553,0.00021575,2]
[319544902,1710840647069,-500.0,0.00021594,2]
[319544905,1710840647078,-312.54514562,0.00021594,2]
[319544908,1710840647088,-1148.04223621,0.00021594,2]
[319544910,1710840647097,-683.06046603,0.00021594,2]
[319544913,1710840647106,-154.9690062,0.00021594,2]
[319544916,1710840647115,-1582.75134522,0.00021594,2]
[319544918,1710840647124,-808.11106079,0.00021594,2]
[319544920,1710840647134,-500.0,0.00021595,2]
[319544922,1710840647143,-500.0,0.00021595,2]
[319544924,1710840647152,-500.0,0.00021595,2]
[319544926,1710840647161,-500.0,0.00021595,2]
[319544928,1710840647171,-2496.62,0.00021595,2]
[319544929,1710840647180,-2496.62,0.00021595,2]
[319544931,1710840647189,-500.0,0.00021595,2]
[319544933,1710840647198,-368.7,0.00021595,2]
[319544935,1710840647208,-500.0,0.00021595,2]
[319544937,1710840647217,-500.0,0.00021595,2]
[319544939,1710840647226,-500.0,0.00021595,2]
[319544941,1710840647239,-500.0,0.00021595,2]
[319544943,1710840647248,-500.0,0.00021595,2]
[319544945,1710840647257,-500.0,0.00021595,2]
[319544947,1710840647267,-646.56132386,0.00021595,2]
[319544949,1710840647276,-155.08437307,0.00021595,2]
[319544951,1710840647285,-500.0,0.00021596,2]
[319544953,1710840647294,-511.12989525,0.00021596,2]
[319544955,1710840647303,-500.0,0.00021596,2]
[319544957,1710840647311,-500.0,0.00021596,2]
[319544958,1710840647320,-500.0,0.00021596,2]
[319544960,1710840647330,-500.0,0.00021596,2]
[319544962,1710840647340,-500.0,0.00021596,2]
[319544964,1710840647349,-326.7997673,0.00021596,2]
[319544966,1710840647358,-500.0,0.00021596,2]
[319544968,1710840647367,-500.0,0.00021596,2]
[319544970,1710840647377,-500.0,0.00021596,2]
[319544972,1710840647385,-500.0,0.00021596,2]
[319544974,1710840647395,-500.0,0.00021596,2]
[319544976,1710840647403,-500.0,0.00021596,2]
[319544978,1710840647413,-500.0,0.00021596,2]
[319544980,1710840647422,-500.0,0.00021596,2]
[319544982,1710840647431,-500.0,0.00021596,2]
[319544984,1710840647440,-500.0,0.00021596,2]
[319544986,1710840647449,-500.0,0.00021596,2]
[319544988,1710840647460,-500.0,0.00021596,2]
[319544990,1710840647470,-500.0,0.00021596,2]
[319544992,1710840647479,-523.3803796,0.00021596,2]
[319544994,1710840647490,-626.87754455,0.00021598,2]
[319544996,1710840647498,-144.99572746,0.00021605,2]
[319544998,1710840647508,-971.69203889,0.00021605,2]
[319545000,1710840647517,-874.05026484,0.00021605,2]
[319545002,1710840647526,-155.01240099,0.00021742,2]
[319545003,1710840647535,-208.46014037,0.00021742,2]
[319545005,1710840647544,-154.98141649,0.00021743,2]
[319545007,1710840647554,-616.29492965,0.00021743,2]
[319545009,1710840647563,-211.473941,0.00021802,2]
[319545011,1710840647571,-176.62279,0.00021802,2]
[319545013,1710840647580,-159.116211,0.00021802,2]
[319545014,1710840647589,-243.489504,0.00021802,2]
[319545016,1710840647598,-531.04,0.00021887,2]
[319545018,1710840647607,-2496.62,0.00021887,2]
[319545020,1710840647616,-7485.76996714,0.00021888,2]
[319545022,1710840647625,-874.05026484,0.000219,2]
[319545024,1710840647635,-844.15456497,0.000219,2]
[319545026,1710840647646,-500.0,0.00021917,30]
[319545028,1710840647655,-500.0,0.00021917,30]
[319545030,1710840647664,-500.0,0.00021917,30]
[319545032,1710840647673,-619.85357697,0.00021917,30]
[319545034,1710840647682,-500.0,0.00021917,2]
[319545036,1710840647692,-500.0,0.00021917,2]
[319545038,1710840647702,-1416.246464,0.00021918,2]
[319545040,1710840647711,-500.0,0.00021918,2]
[319545042,1710840647721,-500.0,0.00021998,2]
[319545044,1710840647732,-500.0,0.00021998,2]
[319545046,1710840647744,-500.0,0.00021999,2]
[319545048,1710840647753,-500.0,0.00021999,2]
[319545058,1710840647848,-500.0,0.00021999,2]
[319545060,1710840647858,-500.0,0.00021999,2]
[319545062,1710840647867,-500.0,0.00021999,2]
[319545063,1710840647877,-500.0,0.00021999,2]
[319545065,1710840647887,-500.0,0.00021999,2]
[319545066,1710840647898,-500.0,0.00021999,2]
[319545067,1710840647908,-500.0,0.00021999,2]
[319545069,1710840647917,-500.0,0.00021999,2]
[319545071,1710840647928,-2496.62,0.00021999,2]
[319545073,1710840647937,-2496.62,0.00021999,2]
[319545075,1710840647946,-2496.62,0.00021999,2]
[319545077,1710840647955,-2496.62,0.00021999,2]
[319545079,1710840647964,-2496.62,0.00021999,2]
[319545081,1710840647973,-2496.62,0.00021999,2]
[319545083,1710840647982,-2496.62,0.00021999,2]
[319545085,1710840647993,-2496.62,0.00021999,2]
[319545086,1710840648002,-2496.62,0.00021999,2]
[319545088,1710840648012,-2496.62,0.00021999,2]
[319545090,1710840648022,-2496.62,0.00021999,2]
[319545092,1710840648031,-2496.62,0.00021999,2]
[319545094,1710840648041,-2496.62,0.00021999,2]
[319545096,1710840648051,-2496.62,0.00021999,2]
[319545098,1710840648060,-1176.0069258,0.00021999,2]
[319545229,1710841317246,233.671285,0.00017466,2]
[319545255,1710841594257,2000.7591014,0.00017176,2]
[319545274,1710841745158,-187.5384845,0.00017979,2]
[319545275,1710841745179,-1299.83668109,0.00017979,2]
[319545276,1710841745201,-2745.21357052,0.0001798,2]
[319545277,1710841745223,-3225.79499278,0.0001798,2]
[319545278,1710841745244,-1043.15208792,0.00017981,2]
[319545279,1710841745264,-814.47542875,0.00017982,2]
[319545280,1710841745285,-496.06721015,0.00017982,2]
[319545281,1710841745393,233.671285,0.00017155,2]
[319545282,1710841748149,-930.05833365,0.00017979,2]
[319545283,1710841748171,-47225.80450673,0.00017982,2]
[319545284,1710841748193,-411.21879934,0.00017991,2]
[319545285,1710841767120,-2745.21357052,0.0001798,2]
[319545286,1710841767145,-403.25662941,0.00017991,2]
[319545287,1710841767166,-171.57733227,0.00018273,2]
[319545288,1710841767186,-154.95351395,0.00018373,2]
[319545289,1710841767208,-5.21895385,0.00018392,2]
[319545297,1710841832205,-149.7345601,0.00018392,2]
[319545298,1710841832215,-154.9690062,0.00018588,2]
[319545299,1710841832226,-150.0,0.000189,2]
[319545300,1710841832237,-175.234543,0.00019178,2]
[319545301,1710841832247,-2796.40106982,0.000195,2]
[319545563,1710841838054,-8719.21893018,0.000195,2]
[319545565,1710841838065,-1299.83668109,0.00019588,2]
[319545566,1710841838077,-8728.05159003,0.00019589,2]
[319545567,1710841838086,-213.6087943,0.00019791,2]
[319545568,1710841838095,-213.608794,0.00019791,2]
[319545570,1710841838105,-1015.2,0.0001998,10]
[319545572,1710841838114,-5193.61780529,0.0002,5]
[319545575,1710841838127,-200.0,0.0002,2]
[319545578,1710841838135,-151.52847512,0.0002,2]
[319545580,1710841838146,-175.234543,0.000203,2]
[319545583,1710841838155,-177.40083632,0.00020403,2]
[319545586,1710841838164,-718.96236235,0.00020544,2]
[319545589,1710841838172,-220.46073524,0.00020721,2]
[319545592,1710841838181,-176.62279,0.00020764,2]
[319545595,1710841838191,-158.605456,0.00020764,2]
[319545598,1710841838200,-2000.0,0.00020788,2]
[319545601,1710841838209,-609.53494794,0.00020818,2]
[319545603,1710841838219,-2394.32627003,0.00020818,2]
[319545606,1710841838229,-1979.90450857,0.00020819,2]
[319545609,1710841838239,-186.72088512,0.00020819,2]
[319545611,1710841838248,-223.97682907,0.00020819,2]
[319545614,1710841838257,-1879.70272812,0.00020819,2]
[319545618,1710841838267,-34220.55338299,0.0002082,2]
[319545619,1710841838276,-215.87297113,0.00020821,2]
[319545621,1710841838286,-621.37578691,0.00020821,2]
[319545623,1710841838295,-500.0,0.00020821,2]
[319545625,1710841838305,-500.0,0.00020821,2]
[319545627,1710841838314,-500.0,0.00020821,2]
[319545629,1710841838323,-500.0,0.00020821,2]
[319545631,1710841838333,-500.0,0.00020821,2]
[319545633,1710841838342,-639.19249304,0.00020821,2]
[319545635,1710841838351,-500.0,0.00020821,2]
[319545637,1710841838361,-500.0,0.00020821,2]
[319545639,1710841838370,-500.0,0.00020821,2]
[319545641,1710841838382,-500.0,0.00020821,2]
[319545643,1710841838391,-500.0,0.00020821,2]
[319545645,1710841838400,-500.0,0.00020821,2]
[319545647,1710841838410,-451.43324433,0.00020821,2]
[319545649,1710841838419,-500.0,0.00020821,2]
[319545651,1710841838429,-500.0,0.00020821,2]
[319545653,1710841838438,-547.75457667,0.00020821,2]
[319545655,1710841838448,-501.57910099,0.00020821,2]
[319545657,1710841838457,-420.04709894,0.00020821,2]
[319545659,1710841838467,-825.15,0.00020821,2]
[319545661,1710841838477,-825.15,0.00020821,2]
[319545663,1710841838486,-500.0,0.00020821,2]
[319545665,1710841838495,-500.0,0.00020821,2]
[319545667,1710841838504,-500.0,0.00020821,2]
[319545668,1710841838513,-500.0,0.00020821,2]
[319545669,1710841838522,-500.0,0.00020821,2]
[319545672,1710841838542,-627.09220461,0.00020821,2]
[319545675,1710841838552,-500.0,0.00020821,2]
[319545677,1710841838562,-500.0,0.00020821,2]
[319545679,1710841838572,-500.0,0.00020821,2]
[319545681,1710841838582,-500.0,0.00020821,2]
[319545682,1710841838591,-273.63598118,0.00020821,2]
[319545684,1710841838602,-500.0,0.00020821,2]
[319545686,1710841838612,-500.0,0.00020821,2]
[319545688,1710841838624,-500.0,0.00020821,2]
[319545690,1710841838634,-500.0,0.00020821,2]
[319545692,1710841838643,-2000.0,0.00020893,2]
[319545694,1710841838653,-336.88608686,0.00020897,2]
[319545696,1710841838662,-2000.0,0.00020999,2]
[319545698,1710841838672,-394.11847544,0.00021,2]
[319545700,1710841838681,-545.98257597,0.00021,2]
[319545702,1710841838691,-220.46073522,0.00021016,2]
[319545704,1710841838700,-158.605456,0.0002111,2]
[319545706,1710841838709,-500.0,0.00021118,2]
[319545708,1710841838719,-340.86322325,0.00021118,2]
[319545710,1710841838728,-157.371,0.00021119,2]
[319545712,1710841838737,-157.372,0.00021119,2]
[319545714,1710841838746,-157.372,0.00021119,2]
[319545716,1710841838755,-500.0,0.00021163,2]
[319545718,1710841838765,-501.94810426,0.00021163,2]
[319545720,1710841838774,-500.0,0.00021163,2]
[319545722,1710841838783,-500.0,0.00021163,2]
[319545724,1710841838793,-176.62279,0.00021283,2]
[319545726,1710841838802,-500.0,0.0002131,2]
[319545728,1710841838811,-220.46073522,0.00021311,2]
[319545730,1710841838821,-500.0,0.00021394,2]
[319545732,1710841838830,-329.82541631,0.00021394,2]
[319545734,1710841838839,-154.98450155,0.0002141,2]
[319545736,1710841838849,-175.234543,0.00021422,2]
[319545738,1710841838858,-158.605456,0.00021456,2]
[319545740,1710841838867,-500.0,0.00021493,2]
[319545742,1710841838879,-500.0,0.00021494,2]
[319545745,1710841838894,-500.0,0.00021494,2]
[319545747,1710841838903,-500.0,0.00021494,2]
[319545749,1710841838912,-500.0,0.00021495,2]
[319545751,1710841838921,-825.15,0.00021495,2]
[319545753,1710841838930,-500.0,0.00021495,2]
[319545755,1710841838939,-500.0,0.00021495,2]
[319545757,1710841838948,-500.0,0.00021496,2]
[319545759,1710841838957,-500.0,0.00021496,2]
[319545761,1710841838967,-500.0,0.00021496,2]
[319545763,1710841838976,-500.0,0.00021496,2]
[319545765,1710841838986,-500.0,0.00021496,2]
[319545767,1710841838996,-583.80292565,0.00021496,2]
[319545769,1710841839005,-150.0,0.000215,30]
[319545771,1710841839014,-500.0,0.00021595,2]
[319545773,1710841839023,-220.46073522,0.00021605,2]
[319545775,1710841839033,-430.31271689,0.00021609,2]
[319545777,1710841839043,-1000.0,0.000218,2]
[319545779,1710841839054,-158.605456,0.00021802,2]
[319545781,1710841839064,-176.62279,0.00021802,2]
[319545783,1710841839077,-6998.97966208,0.00021897,3]
[319545785,1710841839087,-500.0,0.00021899,2]
[319545787,1710841839097,-500.0,0.00021899,2]
[319545789,1710841839106,-500.0,0.00021899,2]
[319545791,1710841839116,-825.15,0.00021899,2]
[319545793,1710841839128,-825.15,0.00021899,2]
[319545795,1710841839137,-825.15,0.00021899,2]
[319545797,1710841839146,-500.0,0.00021899,2]
[319545800,1710841839158,-500.0,0.00021899,2]
[319545802,1710841839167,-500.0,0.00021899,2]
[319545804,1710841839183,-500.0,0.00021899,2]
[319545807,1710841839196,-500.0,0.00021899,2]
[319545809,1710841839208,-500.0,0.00021899,2]
[319545811,1710841839220,-500.0,0.00021899,2]
[319545813,1710841839232,-242.27758974,0.00021899,2]
[319545816,1710841839243,-500.0,0.00021899,2]
[319545818,1710841839255,-500.0,0.00021899,2]